bitfinex/quotes_ETHUSD_20240621
["timestamp","ask_amount","ask_price","bid_price","bid_amount"]
[1718983407339,2.28441,3502.0,3501.5,2.28471]
[1718983407544,2.28448,3501.9,3501.4,2.2848]
[1718983407713,2.28434,3502.1,3501.5,2.28467]
[1718983407915,2.28434,3502.1,3501.4,2.2848]
[1718983408113,2.28442,3502.0,3501.6,2.28466]
[1718983408555,0.228422,3502.2,3501.6,2.28466]
[1718983408717,2.28415,3502.4,3501.4,2.28477]
[1718983409064,2.2848,3501.4,3500.6,4.61655]
[1718983409370,1.714,3502.2,3500.6,4.61655]
[1718983409371,2.28458,3501.8,3500.7,2.28525]
[1718983409534,0.605532,3501.7,3500.9,2.28511]
[1718983409732,2.28485,3501.4,3500.9,2.28511]
[1718983409943,2.28476,3501.5,3500.9,2.28511]
[1718983410350,2.28486,3501.3,3500.9,2.28511]
[1718983410652,3.0,3501.6,3501.5,2.28473]
[1718983410857,2.28435,3502.1,3500.9,0.69016]
[1718983410858,2.28448,3501.9,3501.4,2.28479]
[1718983411059,0.228435,3502.0,3501.1,2.28499]
[1718983411416,0.228435,3502.0,3500.4,5.10945]
[1718983411417,2.28466,3501.7,3501.2,2.28487]
[1718983411755,2.28475,3501.5,3501.1,2.28496]
[1718983412050,3.0,3501.6,3501.2,2.28491]
[1718983412270,5.28469,3501.6,3501.1,2.28496]
[1718983412472,2.28482,3501.4,3501.0,2.28506]
[1718983412764,2.28497,3501.2,3500.6,2.28532]
[1718983412933,2.28504,3501.1,3500.6,2.28531]
[1718983413294,3.228482,3501.3,3500.3,4.58139]
[1718983413295,3.0,3501.7,3500.3,4.58139]
[1718983413565,7.4,3502.7,3499.5,7.37]
[1718983413566,2.28437,3502.1,3501.5,2.28468]
[1718983413926,2.28441,3502.0,3501.5,2.28468]
[1718983414344,2.28437,3502.1,3501.7,2.28458]
[1718983414526,2.28428,3502.2,3501.8,2.28451]
[1718983414725,0.456842,3502.1,3501.8,2.28451]
[1718983414983,0.456842,3502.1,3501.4,2.28479]
[1718983415132,2.28417,3502.4,3501.4,2.28479]
[1718983415531,2.28417,3502.4,3501.9,2.28441]
[1718983415769,2.28417,3502.4,3501.4,2.28479]
[1718983415770,2.28433,3502.2,3501.7,2.2846]
[1718983416077,5.28417,3502.4,3501.7,2.2846]
[1718983416078,5.28422,3502.3,3501.9,2.28447]
[1718983416284,0.528417,3502.3,3501.9,2.28441]
[1718983416432,3.528417,3502.3,3502.0,2.28434]
[1718983416633,0.528417,3502.3,3502.1,2.28432]
[1718983417127,2.812627,3502.3,3502.0,2.28439]
[1718983417447,0.54359,3502.2,3501.9,2.28445]
[1718983418279,2.28448,3501.9,3501.5,2.28472]
[1718983419027,2.28454,3501.8,3501.4,2.28478]
[1718983419232,2.28456,3501.8,3501.3,2.28483]
[1718983419470,2.812967,3501.8,3501.4,2.28473]
[1718983419969,2.28441,3502.0,3501.5,2.28467]
[1718983420295,3.0,3502.2,3501.7,2.28459]
[1718983420574,9.68396,3502.7,3502.1,2.28433]
[1718983420791,2.07615911,3502.6,3502.3,2.28419]
[1718983420935,2.07615911,3502.6,3502.2,2.28426]
[1718983420936,4.36017911,3502.6,3502.2,2.28426]
[1718983421135,2.28408,3502.5,3502.1,2.28434]
[1718983421355,2.740883,3502.5,3502.1,2.28434]
[1718983421762,2.28414,3502.4,3502.0,2.28439]
[1718983421976,2.28414,3502.4,3502.1,2.28434]
[1718983422173,2.28414,3502.4,3501.9,2.28446]
[1718983422174,2.740893,3502.5,3502.2,2.28427]
[1718983422384,12.92,3503.9,3502.6,2.284]
[1718983422385,1.714,3503.2,3502.6,2.284]
[1718983422675,1.714,3503.2,3502.6,2.28396]
[1718983422676,4.35953401,3503.1,3502.6,2.28396]
[1718983422876,2.28372,3503.1,3502.6,2.28396]
[1718983423082,0.456734,3503.0,3502.7,2.28395]
[1718983423426,2.28363,3503.2,3502.8,2.28383]
[1718983423959,3.0,3503.3,3503.0,2.28369]
[1718983424549,7.4,3503.4,3503.1,2.28368]
[1718983424843,7.4,3503.4,3502.8,2.28388]
[1718983424844,2.2835,3503.4,3502.8,2.28388]
[1718983425184,0.456694,3503.3,3503.1,2.28367]
[1718983425401,2.28344,3503.5,3503.1,2.28367]
[1718983425694,2.28344,3503.5,3503.2,2.28361]
[1718983426045,2.28324,3503.8,3503.3,2.2835]
[1718983426238,0.642812,3503.7,3503.3,2.2835]
[1718983426441,3.642812,3503.7,3503.5,2.28337]
[1718983426646,5.2832,3503.9,3503.5,2.28337]
[1718983426843,5.2831,3504.0,3503.6,2.28334]
[1718983427448,3.0,3504.0,3503.7,2.28327]
[1718983428204,3.0,3504.0,3503.8,2.28323]
[1718983429749,2.28298,3504.2,3503.8,2.28323]
[1718983430351,3.0,3504.3,3503.8,2.28323]
[1718983430553,2.28287,3504.4,3504.0,2.2831]
[1718983430746,2.28291,3504.3,3503.7,2.28329]
[1718983430969,2.28291,3504.3,3503.9,2.28315]
[1718983431172,0.456575,3504.2,3503.9,2.28315]
[1718983431387,0.456575,3504.2,3503.7,2.28324]
[1718983431388,3.456575,3504.2,3503.7,2.28324]
[1718983431585,3.456575,3504.2,3503.9,2.28314]
[1718983431586,0.456575,3504.2,3503.9,2.28314]
[1718983431754,5.28291,3504.3,3503.9,2.28314]
[1718983431955,2.28311,3504.0,3503.3,2.28355]
[1718983432210,2.28328,3503.8,3503.3,2.28354]
[1718983432396,2.28305,3504.1,3503.4,2.28347]
[1718983432574,3.0,3503.8,3503.4,2.28347]
[1718983432884,2.28324,3503.8,3503.3,2.28354]
[1718983433202,3.0,3503.8,3503.4,2.28349]
[1718983433484,3.0,3503.8,3503.3,2.28355]
[1718983433485,2.2833,3503.7,3503.3,2.28355]
[1718983433686,0.44401,3503.6,3503.3,2.28355]
[1718983434092,0.44401,3503.6,3503.5,2.28343]
[1718983434385,2.28325,3503.8,3503.4,2.28349]
[1718983434589,3.0,3503.9,3503.5,2.28341]
[1718983434906,2.28298,3504.2,3503.8,2.28323]
[1718983435974,3.0,3504.4,3503.7,2.28329]
[1718983436175,2.28296,3504.3,3503.9,2.28315]
[1718983436473,0.228296,3504.2,3504.0,2.28308]
[1718983437092,3.0,3504.4,3504.2,2.28292]
[1718983437405,5.28266,3504.7,3504.3,2.28289]
[1718983437577,2.28266,3504.7,3504.3,2.28289]
[1718983437771,0.756517,3504.6,3504.3,2.28289]
[1718983437971,3.756517,3504.6,3504.3,2.28289]
[1718983438373,0.756517,3504.6,3504.3,2.28289]
[1718983439483,0.756517,3504.6,3504.0,2.2831]
[1718983439680,2.28279,3504.5,3504.1,2.28302]
[1718983439880,3.31549,3504.5,3504.2,2.28296]
[1718983440085,3.31549,3504.5,3504.2,2.28291]
[1718983440285,0.31549,3504.5,3504.2,2.28291]
[1718983440689,0.31549,3504.5,3504.3,2.28289]
[1718983441585,0.31549,3504.5,3504.2,2.28296]
[1718983441771,2.59829,3504.5,3504.1,2.28303]
[1718983441970,3.0,3504.4,3504.1,2.28303]
[1718983442370,3.0,3504.4,3504.2,2.28296]
[1718983442567,3.0,3504.4,3503.9,2.28311]
[1718983442802,3.31549,3504.5,3504.1,2.28298]
[1718983443004,3.0,3504.4,3504.1,2.28298]
[1718983443315,0.31549,3504.5,3504.1,2.28299]
[1718983443748,0.756517,3504.4,3504.1,2.28303]
[1718983444111,3.756517,3504.4,3504.1,2.28303]
[1718983444631,3.756517,3504.4,3503.4,2.28345]
[1718983444632,2.28304,3504.1,3503.4,2.28349]
[1718983444938,2.28285,3504.4,3503.9,2.28311]
[1718983445252,2.28303,3504.2,3503.7,2.2833]
[1718983445457,2.28285,3504.4,3503.7,2.2833]
[1718983445458,0.228285,3504.3,3503.8,2.28317]
[1718983445757,2.28298,3504.2,3503.8,2.28317]
[1718983446109,2.511195,3504.3,3503.9,2.28311]
[1718983446310,2.28265,3504.7,3504.0,2.28304]
[1718983446538,2.28277,3504.5,3504.1,2.28302]
[1718983446857,2.28249,3505.0,3504.6,2.2827]
[1718983447142,3.0,3505.1,3503.9,2.2662]
[1718983447143,2.28271,3504.6,3503.9,2.2662]
[1718983447356,2.28278,3504.5,3503.4,2.4575]
[1718983447506,2.28278,3504.5,3504.1,2.28302]
[1718983447712,2.28284,3504.4,3504.1,2.28302]
[1718983448053,5.28267,3504.7,3503.9,2.28316]
[1718983448343,3.0,3505.0,3504.2,2.28294]
[1718983448652,3.0,3505.1,3504.0,2.28307]
[1718983448961,2.28231,3505.3,3504.8,2.28253]
[1718983449605,5.28218,3505.5,3504.3,2.28284]
[1718983449811,5.28218,3505.5,3504.1,4.72667]
[1718983449812,2.28272,3504.6,3504.2,2.28295]
[1718983450012,2.28266,3504.7,3504.3,2.2829]
[1718983450254,2.28266,3504.7,3504.1,4.72667]
[1718983450407,2.28269,3504.7,3504.2,2.28296]
[1718983450613,2.28271,3504.6,3504.2,2.28296]
[1718983451163,2.28271,3504.6,3504.1,2.4437]
[1718983451164,2.28277,3504.5,3504.1,4.72673]
[1718983451331,2.28261,3504.8,3504.1,2.28303]
[1718983451531,0.228261,3504.7,3503.6,4.4883]
[1718983451744,2.28283,3504.5,3504.0,2.2831]
[1718983451948,2.28283,3504.5,3503.8,2.28323]
[1718983451949,2.28272,3504.6,3504.2,2.28296]
[1718983452359,2.28272,3504.6,3504.3,2.28288]
[1718983452558,2.28266,3504.7,3504.3,2.28288]
[1718983452721,2.28266,3504.7,3504.4,2.28283]
[1718983453045,2.28266,3504.7,3504.3,2.2829]
[1718983453227,2.28252,3504.9,3504.3,2.2829]
[1718983453433,2.28251,3505.0,3504.4,2.28284]
[1718983453644,2.28251,3505.0,3504.2,2.28295]
[1718983453645,2.28259,3504.8,3504.3,2.2829]
[1718983453940,2.28259,3504.8,3504.4,2.28279]
[1718983454132,2.28252,3504.9,3504.4,2.28279]
[1718983454460,2.28266,3504.7,3504.4,2.28279]
[1718983454782,2.28271,3504.6,3504.2,2.28296]
[1718983455329,2.28265,3504.7,3504.4,2.28282]
[1718983455641,2.598039,3504.9,3504.5,2.28277]
[1718983455642,2.28258,3504.8,3504.5,2.28277]
[1718983456055,4.56522,3504.8,3504.4,2.28284]
[1718983456569,2.28264,3504.8,3504.1,2.28298]
[1718983456776,2.28266,3504.7,3504.3,2.2829]
[1718983456929,2.28239,3505.1,3504.6,2.2827]
[1718983457134,3.0,3505.1,3504.6,2.2827]
[1718983457332,3.0,3505.1,3504.5,2.4034]
[1718983457567,3.0,3505.1,3504.7,2.28263]
[1718983457568,2.2824,3505.1,3504.7,2.28263]
[1718983457773,2.28246,3505.0,3504.5,4.68617]
[1718983457955,2.28238,3505.1,3504.7,2.28261]
[1718983458165,2.28245,3505.0,3504.7,2.28261]
[1718983458332,3.0,3505.1,3504.1,4.68642]
[1718983458560,2.28246,3505.0,3504.5,2.28277]
[1718983458768,2.28246,3505.0,3504.6,2.28269]
[1718983458961,2.28252,3504.9,3504.6,2.28269]
[1718983459469,0.3,3505.2,3504.1,4.68643]
[1718983459792,2.28271,3504.7,3504.2,2.28291]
[1718983459989,2.28271,3504.7,3504.4,2.28284]
[1718983460692,2.28271,3504.7,3503.9,2.28313]
[1718983460693,2.28304,3504.1,3503.7,2.28328]
[1718983461006,2.2831,3504.0,3503.7,2.28329]
[1718983461325,2.28323,3503.9,3503.5,2.28342]
[1718983461465,2.28333,3503.7,3503.3,2.2835]
[1718983461986,2.28323,3503.8,3503.4,2.28349]
[1718983462162,2.28348,3503.5,3503.2,4.4053]
[1718983462360,2.28338,3503.6,3503.2,2.28362]
[1718983463305,3.0,3504.4,3503.3,5.020431]
[1718983463474,2.28302,3504.2,3503.8,2.28322]
[1718983463674,2.07507699,3504.3,3503.4,2.28346]
[1718983463675,2.28292,3504.3,3503.9,2.28316]
[1718983463882,2.07503376,3504.2,3504.0,2.2831]
[1718983464061,3.0,3504.3,3503.9,2.28316]
[1718983464263,3.0,3504.3,3504.1,2.28301]
[1718983464469,2.28278,3504.5,3504.1,2.28301]
[1718983464771,2.07489592,3504.4,3504.1,2.28301]
[1718983465111,5.07489592,3504.4,3504.1,2.28301]
[1718983465294,2.07489592,3504.3,3504.1,2.28301]
[1718983465467,5.07489592,3504.3,3504.1,2.28301]
[1718983465663,2.28278,3504.5,3504.2,2.28297]
[1718983465901,2.07489507,3504.4,3504.3,2.2829]
[1718983466278,2.07489507,3504.4,3504.2,2.28295]
[1718983466510,2.07489507,3504.3,3504.2,2.28295]
[1718983466805,2.07489507,3504.3,3504.1,4.69812]
[1718983466806,2.07483612,3504.6,3504.1,2.4151]
[1718983467011,2.07483612,3504.6,3504.2,2.28292]
[1718983467205,2.28279,3504.5,3504.2,2.28292]
[1718983467411,2.07483612,3504.4,3504.2,2.28292]
[1718983467577,2.07483612,3504.4,3504.1,4.69812]
[1718983467774,2.07483612,3504.3,3504.2,4.56594]
[1718983467971,2.46862465,3505.4,3504.8,2.28258]
[1718983467972,2.28219,3505.4,3504.8,2.28258]
[1718983468284,2.28232,3505.2,3504.9,2.2825]
[1718983468524,2.07453866,3505.1,3504.9,2.2825]
[1718983468741,2.28245,3505.0,3504.7,2.28263]
[1718983469055,2.07453866,3504.9,3504.5,2.28276]
[1718983469204,2.07453866,3504.8,3504.6,2.2827]
[1718983469710,2.07453866,3504.7,3504.6,2.2827]
[1718983469910,2.07453866,3504.7,3504.5,2.28276]
[1718983470231,2.07453866,3504.6,3504.5,2.28276]
[1718983470628,2.07459063,3504.8,3504.7,2.28264]
[1718983470935,7.35688584,3505.2,3504.8,2.28256]
[1718983471248,2.07455584,3505.1,3504.8,2.28256]
[1718983471558,2.07455584,3505.1,3504.5,2.28275]
[1718983471559,2.07455584,3505.1,3504.9,2.28246]
[1718983471709,2.07455584,3505.1,3504.6,0.439775]
[1718983471899,2.07455584,3505.1,3504.1,3.113234]
[1718983471900,2.28259,3504.8,3504.1,4.5301]
[1718983472208,2.28272,3504.6,3504.2,2.28297]
[1718983472413,2.28272,3504.6,3504.1,2.4151]
[1718983472414,2.07455584,3504.5,3504.1,2.4151]
[1718983472617,2.07455584,3504.4,3504.2,2.28297]
[1718983472837,2.07455584,3504.3,3504.2,2.28297]
[1718983473216,2.07455584,3504.5,3504.2,2.28297]
[1718983473516,2.07455584,3504.4,3504.2,2.28297]
[1718983473724,2.07455584,3504.4,3504.3,2.2829]
[1718983473932,2.07455584,3504.4,3504.3,2.739487]
[1718983474158,2.07455584,3504.6,3504.3,2.739487]
[1718983474352,2.07455584,3504.5,3504.2,2.28296]
[1718983474513,2.28265,3504.7,3504.2,2.28296]
[1718983474514,2.07455584,3504.4,3504.2,2.28296]
[1718983474846,2.07455584,3504.3,3504.2,2.28296]
[1718983475037,2.07455584,3504.6,3504.2,2.28296]
[1718983475429,4.35727584,3504.6,3504.1,2.28298]
[1718983475632,2.07455584,3504.5,3504.1,0.668108]
[1718983475950,2.07455584,3504.4,3504.2,2.28297]
[1718983476153,2.2826,3504.8,3504.2,2.28297]
[1718983476154,2.07455584,3504.3,3504.2,2.28297]
[1718983476366,2.07473535,3504.5,3504.4,2.28284]
[1718983476652,2.09353574,3505.0,3504.8,2.28253]
[1718983476853,2.0745069,3504.9,3504.8,2.28253]
[1718983477147,2.0745069,3504.9,3504.7,2.28263]
[1718983477311,2.0745069,3504.8,3504.7,2.28263]
[1718983477511,2.28252,3504.9,3504.5,2.28276]
[1718983477713,2.0745069,3504.8,3504.7,9.34622]
[1718983477938,2.07431346,3505.4,3505.2,2.28228]
[1718983478142,2.07421391,3505.3,3505.2,2.28229]
[1718983478354,2.07418332,3505.5,3505.4,2.28219]
[1718983478517,2.07420351,3505.5,3505.4,2.28219]
[1718983478718,2.07420351,3505.6,3505.3,2.28225]
[1718983478913,4.35638351,3505.5,3505.1,2.28232]
[1718983479137,1.79377412,3505.2,3505.1,2.28232]
[1718983479340,1.79377412,3505.2,3505.1,4.5647]
[1718983479562,2.07420351,3505.2,3505.1,10.456242]
[1718983479846,1.79377412,3505.7,3505.6,4.56412]
[1718983480026,1.79377412,3505.8,3505.7,2.28199]
[1718983480230,2.07388954,3506.0,3505.8,2.2819]
[1718983480523,2.0738857,3505.9,3505.8,4.56383]
[1718983480758,1.79312463,3506.1,3506.0,4.5636]
[1718983481059,1.79312463,3506.3,3506.1,2.28173]
[1718983481268,1.79312463,3506.3,3506.2,2.28167]
[1718983481428,1.79312463,3506.4,3506.3,2.2816]
[1718983481631,3.86672706,3506.4,3506.3,2.2816]
[1718983482061,2.07360243,3506.4,3506.3,6.8448]
[1718983482275,5.39249087,3507.0,3506.3,3.17756]
[1718983482276,1.79312463,3506.7,3506.3,3.17756]
[1718983482572,1.79312463,3507.1,3506.8,2.28126]
[1718983482794,2.07328463,3507.0,3506.8,2.28126]
[1718983483064,2.28076,3507.6,3507.1,2.28108]
[1718983483270,1.79312463,3507.7,3507.4,2.28087]
[1718983483478,2.07291225,3507.6,3507.5,2.28082]
[1718983484069,2.07291225,3507.6,3507.4,2.28088]
[1718983484234,2.28069,3507.7,3507.1,2.28104]
[1718983484641,2.28084,3507.5,3507.2,2.28101]
[1718983485335,2.28076,3507.6,3507.2,2.28101]
[1718983485761,0.228069,3507.7,3506.4,5.2987]
[1718983486080,2.28107,3507.2,3506.6,2.28141]
[1718983486384,4.56215,3507.2,3506.8,2.28128]
[1718983486752,2.28107,3507.2,3506.8,2.28128]
[1718983487053,2.28109,3507.1,3506.8,2.28128]
[1718983487259,1.78511516,3507.8,3506.4,2.28154]
[1718983487466,2.28109,3507.1,3506.7,2.28133]
[1718983487786,2.28109,3507.1,3506.0,2.4847]
[1718983487787,2.2816,3506.4,3506.0,4.76644]
[1718983488002,2.28098,3507.3,3506.0,2.4847]
[1718983488003,2.28118,3507.0,3506.0,2.4847]
[1718983488274,11.46609516,3507.3,3506.8,2.28126]
[1718983488275,2.28105,3507.2,3506.8,2.28126]
[1718983488577,2.28109,3507.1,3506.5,2.28145]
[1718983488774,2.28115,3507.0,3506.6,2.28138]
[1718983489080,2.28115,3507.0,3506.7,2.28132]
[1718983489581,2.28108,3507.1,3506.7,2.28128]
[1718983490550,2.28102,3507.2,3506.6,2.2814]
[1718983490551,2.28116,3507.0,3506.6,2.2814]
[1718983490768,2.28116,3507.0,3506.7,2.28134]
[1718983491149,2.28102,3507.2,3506.7,2.28134]
[1718983491354,2.2811,3507.1,3506.8,2.28128]
[1718983491674,2.28121,3506.9,3506.5,2.28147]
[1718983491988,2.28121,3506.9,3506.3,2.28155]
[1718983492148,2.28121,3506.9,3506.0,2.4847]
[1718983492349,0.5735248,3507.1,3506.0,2.28179]
[1718983492350,2.28143,3506.6,3506.0,2.28179]
[1718983492594,2.28135,3506.7,3506.0,2.28179]
[1718983492888,2.28123,3506.9,3506.4,2.28148]
[1718983493189,2.2813,3506.8,3506.4,2.28148]
[1718983493582,3.0,3507.0,3506.6,2.28139]
[1718983493796,0.5735248,3507.1,3506.6,2.28139]
[1718983494110,2.28122,3506.9,3506.5,2.28147]
[1718983494468,2.2813,3506.8,3506.5,2.28147]
[1718983494659,2.28145,3506.6,3506.0,2.28179]
[1718983494895,2.2817,3506.2,3505.8,2.28192]
[1718983495119,0.4984822,3506.8,3505.6,2.28206]
[1718983495407,2.28186,3506.0,3505.6,2.28206]
[1718983495966,2.28173,3506.1,3505.7,2.28197]
[1718983496171,0.228173,3506.1,3505.1,2.289]
[1718983496370,2.3629,3506.6,3505.1,2.289]
[1718983496371,2.28161,3506.3,3505.1,2.289]
[1718983496577,2.28211,3505.6,3505.2,2.28232]
[1718983498214,2.28182,3506.0,3505.2,2.28232]
[1718983498518,2.28182,3506.0,3505.3,2.28225]
[1718983498519,2.28195,3505.8,3505.3,2.28225]
[1718983498698,2.28208,3505.6,3505.2,2.28231]
[1718983499107,2.28208,3505.6,3505.2,2.28226]
[1718983499307,2.28214,3505.5,3505.2,2.28226]
[1718983499804,2.28214,3505.5,3505.1,2.28238]
[1718983500011,2.2822,3505.4,3505.1,2.28238]
[1718983500375,4.56445,3505.4,3505.0,2.28244]
[1718983500620,2.28227,3505.3,3505.0,2.28244]
[1718983500789,2.28213,3505.5,3505.1,2.28233]
[1718983500991,2.28238,3505.2,3504.7,2.28259]
[1718983501181,2.28244,3505.1,3504.7,2.28259]
[1718983501591,2.28244,3505.1,3504.5,3.42895]
[1718983501592,2.28238,3505.2,3504.5,2.28277]
[1718983501778,2.28238,3505.2,3504.2,4.56063]
[1718983501779,2.28258,3504.8,3504.4,2.28279]
[1718983501981,2.28283,3504.5,3503.8,2.2777]
[1718983502184,2.28291,3504.3,3504.0,2.28309]
[1718983502428,2.28283,3504.5,3504.0,2.28309]
[1718983502726,2.28271,3504.6,3504.0,2.28309]
[1718983502727,2.28286,3504.4,3504.0,2.28309]
[1718983503080,2.28286,3504.4,3504.1,2.28302]
[1718983503751,2.28291,3504.3,3504.0,2.28309]
[1718983503900,2.28285,3504.4,3504.0,3.0131022]
[1718983504104,2.28238,3505.2,3503.9,0.456102]
[1718983504105,2.28303,3504.2,3503.9,0.456102]
[1718983504284,2.28303,3504.2,3503.7,2.28328]
[1718983504480,2.28303,3504.2,3503.8,2.28321]
[1718983504824,2.28279,3504.5,3503.4,4.56113]
[1718983504997,2.28303,3504.2,3503.8,2.28323]
[1718983505482,2.28299,3504.2,3503.8,2.28323]
[1718983505818,2.28308,3504.1,3503.7,2.28329]
[1718983505980,2.28287,3504.4,3503.7,0.456669]
[1718983506187,2.28287,3504.4,3504.0,2.28305]
[1718983506886,2.28307,3504.1,3503.7,2.28329]
[1718983507082,2.28323,3503.8,3503.4,2.28349]
[1718983507316,2.28331,3503.7,3503.4,2.28349]
[1718983507914,2.28277,3504.5,3503.4,0.456711]
[1718983507915,2.2828,3504.5,3503.4,0.456711]
[1718983508100,2.28271,3504.6,3504.2,2.28297]
[1718983508309,2.28271,3504.6,3504.0,2.2831]
[1718983508643,2.28245,3505.0,3504.6,2.28265]
[1718983508790,2.28245,3505.0,3504.6,2.28269]
[1718983509307,2.28264,3504.7,3504.4,2.28282]
[1718983509491,2.28264,3504.7,3504.3,2.28289]
[1718983509492,2.28271,3504.6,3504.3,2.2829]
[1718983510003,2.28266,3504.7,3504.3,2.2829]
[1718983510202,1.7830407,3505.7,3504.6,2.115]
[1718983510428,1.7830407,3505.7,3505.4,2.28218]
[1718983510644,2.28188,3505.9,3505.4,2.28218]
[1718983510925,2.28167,3506.2,3505.7,2.28198]
[1718983511095,2.28175,3506.1,3505.7,2.28198]
[1718983511926,2.28168,3506.2,3505.8,2.2819]
[1718983512429,2.28168,3506.2,3505.7,2.28198]
[1718983512932,2.28181,3506.0,3505.7,2.28198]
[1718983513296,3.0,3506.3,3505.8,2.28192]
[1718983513495,4.77879,3506.7,3506.1,2.28168]
[1718983513496,2.28153,3506.5,3506.1,2.28168]
[1718983513719,2.28148,3506.5,3506.2,2.28162]
[1718983514232,2.28173,3506.2,3505.8,2.28192]
[1718983514407,2.28173,3506.2,3505.9,2.28186]
[1718983514611,2.28161,3506.3,3505.9,2.28186]
[1718983515129,2.28161,3506.3,3506.0,2.2818]
[1718983515505,3.0,3506.9,3505.2,4.69726]
[1718983515730,2.28184,3506.0,3505.6,2.28205]
[1718983515910,2.28184,3506.0,3505.7,2.28199]
[1718983516113,2.28161,3506.3,3505.2,4.69726]
[1718983516318,2.28161,3506.3,3505.9,2.2818]
[1718983516533,2.28153,3506.5,3506.0,2.28176]
[1718983516719,2.28154,3506.4,3506.0,2.28176]
[1718983516924,2.28154,3506.4,3506.0,2.28174]
[1718983517104,7.4,3506.7,3506.0,2.2818]
[1718983517308,2.28148,3506.5,3506.2,2.28165]
[1718983517498,2.28155,3506.4,3506.1,2.28172]
[1718983518023,2.28155,3506.4,3505.7,2.28199]
[1718983518024,2.28149,3506.5,3506.2,2.28166]
[1718983518313,2.28161,3506.3,3506.0,2.28177]
[1718983518497,2.2816,3506.4,3506.0,2.28179]
[1718983518697,5.28141,3506.6,3506.0,2.28174]
[1718983518937,2.28154,3506.4,3506.1,2.28168]
[1718983519247,2.28154,3506.4,3506.0,2.28174]
[1718983519427,2.28161,3506.3,3506.0,2.28174]
[1718983519731,2.28189,3505.9,3505.4,2.28218]
[1718983520395,2.28189,3505.9,3505.6,2.28206]
[1718983520599,2.28181,3506.0,3505.6,2.28206]
[1718983522434,2.28193,3505.8,3505.3,2.28219]
[1718983522736,2.28212,3505.5,3505.1,2.28238]
[1718983522923,2.28238,3505.1,3504.6,2.4715]
[1718983523123,2.2824,3505.1,3504.5,2.28272]
[1718983523293,2.28257,3504.9,3504.3,2.2829]
[1718983523498,2.28257,3504.9,3504.5,2.28277]
[1718983523902,2.28259,3504.8,3504.5,2.28277]
[1718983524235,2.28225,3505.4,3505.0,2.2824]
[1718983524437,2.28226,3505.3,3505.0,2.2824]
[1718983525306,2.28213,3505.5,3505.1,2.28233]
[1718983525663,4.35670471,3505.4,3504.9,2.28249]
[1718983525809,2.28219,3505.4,3505.0,2.28244]
[1718983526521,2.28238,3505.2,3504.8,2.28257]
[1718983526870,2.28258,3504.8,3504.3,2.2829]
[1718983527007,2.28245,3505.0,3504.3,2.2829]
[1718983527211,2.28268,3504.7,3504.4,2.28284]
[1718983527834,2.28257,3504.9,3504.5,2.28277]
[1718983528141,2.28265,3504.7,3504.4,2.28283]
[1718983529320,2.28251,3504.9,3504.4,2.28283]
[1718983530746,2.28265,3504.7,3504.4,2.28283]
[1718983530980,2.28258,3504.8,3504.5,2.28277]
[1718983531113,2.28245,3505.0,3504.5,2.28277]
[1718983531920,2.28263,3504.8,3504.5,2.28277]
[1718983532151,2.28234,3505.2,3504.4,2.28282]
[1718983532152,2.28265,3504.7,3504.4,2.28282]
[1718983532340,2.28275,3504.6,3504.2,2.28297]
[1718983532549,2.2825,3505.0,3504.2,2.28297]
[1718983532720,2.10158294,3505.3,3504.0,2.28307]
[1718983532721,2.28293,3504.3,3504.0,2.28307]
[1718983533212,2.28281,3504.5,3504.1,2.28303]
[1718983533416,2.28282,3504.5,3504.1,2.28298]
[1718983533613,2.28277,3504.6,3504.1,2.28298]
[1718983534036,2.28285,3504.4,3504.1,2.28298]
[1718983534953,2.28278,3504.5,3504.0,2.28307]
[1718983535167,2.28277,3504.6,3504.0,2.28307]
[1718983535451,2.28297,3504.2,3503.9,2.28316]
[1718983536039,0.4070274,3504.6,3503.8,2.28322]
[1718983536246,2.2829,3504.3,3503.8,2.28322]
[1718983536415,2.28302,3504.2,3503.8,2.28322]
[1718983536827,2.28292,3504.3,3503.8,2.28322]
[1718983537166,1.7887306,3504.7,3503.3,4.39754]
[1718983537316,2.28309,3504.1,3503.7,2.28327]
[1718983537854,2.28304,3504.1,3503.8,2.28322]
[1718983538173,2.21700366,3504.6,3503.4,2.28346]
[1718983538174,2.28317,3503.9,3503.4,2.28346]
[1718983538487,2.2831,3504.1,3503.5,2.2834]
[1718983538787,2.28298,3504.2,3503.8,2.28318]
[1718983538980,2.28311,3504.0,3503.5,0.456702]
[1718983539155,2.28318,3503.9,3503.6,2.28336]
[1718983539740,2.28323,3503.8,3503.5,0.456702]
[1718983539958,2.28317,3503.9,3503.5,2.28342]
[1718983540176,2.28317,3503.9,3503.6,2.28334]
[1718983540491,2.2831,3504.0,3503.7,2.28329]
[1718983540862,2.28298,3504.2,3503.8,2.28321]
[1718983541067,2.2831,3504.0,3503.7,2.28329]
[1718983541270,2.28305,3504.1,3503.7,2.28325]
[1718983541473,2.28291,3504.3,3504.0,2.2831]
[1718983541640,2.2831,3504.0,3503.7,2.28324]
[1718983541840,2.28305,3504.1,3503.8,2.28322]
[1718983542155,2.07503179,3504.0,3503.8,2.28322]
[1718983542346,2.2831,3504.0,3503.7,2.28329]
[1718983542805,2.28311,3504.0,3503.7,2.28329]
[1718983543144,2.28311,3504.0,3503.1,2.28368]
[1718983543145,2.2834,3503.6,3503.1,2.28368]
[1718983543381,2.2834,3503.6,3502.9,6.72219]
[1718983543382,2.28304,3504.1,3503.7,2.28323]